fUST/lending_fUST_20250504
["ID","MTS","AMOUNT","RATE_DAILY","PERIOD"]
[359822718,1746359462126,-2781.1,0.00038904,15]
[359822720,1746359462135,-400.0,0.00038904,15]
[359822722,1746359462145,-451.77,0.00038904,15]
[359822724,1746359462154,-2781.1,0.00038904,15]
[359822726,1746359462163,-400.0,0.00038904,15]
[359822728,1746359462173,-2781.1,0.00038904,15]
[359822730,1746359462182,-400.0,0.00038904,15]
[359822732,1746359462192,-2781.1,0.00038904,15]
[359822734,1746359462201,-400.0,0.00038904,15]
[359822736,1746359462211,-1007.7567175,0.00038904,15]
[359822756,1746359462389,-1773.3432825,0.00038904,15]
[359822758,1746359462399,-400.0,0.00038904,15]
[359822760,1746359462408,-2781.1,0.00038904,15]
[359822762,1746359462418,-400.0,0.00038904,15]
[359822763,1746359462427,-135.36357258,0.00038904,5]
[359822766,1746359462439,-264.63642742,0.00038904,5]
[359822768,1746359462450,-400.0,0.00038904,2]
[359822770,1746359462460,-2781.1,0.00038904,15]
[359822771,1746359462469,-405.38,0.00038904,15]
[359822773,1746359462479,-400.0,0.00038904,5]
[359822775,1746359462488,-400.0,0.00038904,2]
[359822777,1746359462498,-400.0,0.00038904,15]
[359822779,1746359462507,-2781.1,0.00038904,15]
[359822781,1746359462516,-209.67757332,0.00038904,2]
[359822783,1746359462525,-220.51396564,0.00038904,15]
[359822785,1746359462535,-2781.1,0.00038904,15]
[359822787,1746359462544,-2781.1,0.00038904,15]
[359822789,1746359462553,-2781.1,0.00038904,15]
[359822791,1746359462562,-2781.1,0.00038904,15]
[359822793,1746359462571,-2781.1,0.00038904,15]
[359822795,1746359462580,-2781.26,0.00038904,15]
[359822797,1746359462589,-400.0,0.00038904,15]
[359822799,1746359462599,-200.0,0.00038904,15]
[359822801,1746359462608,-400.0,0.00038904,15]
[359822803,1746359462617,-575.47409,0.00038933,2]
[359822805,1746359462626,-500.0,0.00038973,5]
[359822807,1746359462635,-518.40362723,0.00038973,5]
[359822809,1746359462644,-500.0,0.00038973,5]
[359822811,1746359462653,-500.0,0.00038973,5]
[359822813,1746359462663,-500.0,0.00038973,5]
[359822815,1746359462672,-501.10688517,0.00038973,5]
[359822817,1746359462681,-395.46405949,0.00038973,5]
[359822819,1746359462690,-502.40745355,0.00038973,5]
[359822821,1746359462700,-500.0,0.00038973,5]
[359822823,1746359462709,-500.0,0.00038973,5]
[359822825,1746359462719,-500.66154009,0.00038973,5]
[359822826,1746359462730,-500.0,0.00038973,5]
[359822828,1746359462739,-500.0,0.00038973,5]
[359822830,1746359462748,-500.0,0.00038973,5]
[359822832,1746359462757,-500.0,0.00038973,5]
[359822834,1746359462767,-500.0,0.00038973,5]
[359822836,1746359462777,-332.38720428,0.00038973,5]
[359822840,1746359462806,-400.0,0.00038904,15]
[359822842,1746359462816,-400.0,0.00038904,15]
[359822844,1746359462825,-400.0,0.00038904,15]
[359822846,1746359462835,-400.0,0.00038904,15]
[359822848,1746359462845,-9.45802554,0.00038973,5]
[359822850,1746359462854,-500.0,0.00038973,5]
[359822852,1746359462864,-500.0,0.00038973,5]
[359822854,1746359462873,-535.30017746,0.00038973,5]
[359822856,1746359462884,-506.83047674,0.00038973,5]
[359822858,1746359462893,-500.0,0.00038973,2]
[359822860,1746359462903,-300.0,0.00038973,5]
[359822862,1746359462912,-500.0,0.00038973,5]
[359822864,1746359462921,-269.35415814,0.00038973,5]
[359822866,1746359462931,-500.0,0.00038973,5]
[359822868,1746359462942,-500.0,0.00038973,5]
[359822870,1746359462952,-500.0,0.00038973,5]
[359822872,1746359462961,-507.98502513,0.00038973,5]
[359822874,1746359462971,-501.3195648,0.00038973,5]
[359822876,1746359462981,-502.81220811,0.00038973,5]
[359822878,1746359462990,-500.0,0.00038973,5]
[359822880,1746359463000,-9314.13,0.00039,30]
[359822882,1746359463010,-1542.0,0.00039,2]
[359822884,1746359463020,-578.93781165,0.00039078,2]
[359822886,1746359463031,-7000.0,0.000392,42]
[359822888,1746359463041,-187.11,0.000394,59]
[359822890,1746359463051,-578.93781166,0.00039428,2]
[359822892,1746359463061,-151.0,0.00039588,14]
[359822894,1746359463071,-269.33180512,0.00039588,30]
[359822896,1746359463081,-500.0,0.00039588,30]
[359822898,1746359463091,-151.0,0.00039588,30]
[359822900,1746359463101,-301.34500089,0.00039588,30]
[359822902,1746359463110,-151.0,0.00039588,30]
[359822904,1746359463121,-155.49987722,0.00039588,30]
[359822906,1746359463130,-500.0,0.00039588,30]
[359822908,1746359463140,-500.0,0.00039588,30]
[359822910,1746359463150,-151.0,0.00039588,30]
[359822912,1746359463161,-500.0,0.00039588,30]
[359822914,1746359463170,-151.0,0.00039588,30]
[359822916,1746359463180,-151.0,0.00039588,30]
[359822918,1746359463190,-500.0,0.00039588,30]
[359822920,1746359463199,-500.0,0.00039588,30]
[359822922,1746359463209,-151.0,0.00039588,30]
[359822924,1746359463219,-153.0064051,0.00039588,30]
[359822926,1746359463229,-151.0,0.00039588,30]
[359822928,1746359463239,-500.0,0.00039588,30]
[359822930,1746359463248,-500.0,0.00039588,30]
[359822932,1746359463258,-151.0,0.00039588,30]
[359822934,1746359463267,-160.0,0.000396,60]
[359822936,1746359463277,-378.74280447,0.000396,2]
[359822937,1746359463287,-160.0,0.00039607,3]
[359822939,1746359463296,-160.0,0.00039607,5]
[359822941,1746359463306,-500.0,0.00039615,30]
[359822943,1746359463317,-151.0,0.00039615,30]
[359822945,1746359463326,-199.78399217,0.00039615,30]
[359822947,1746359463336,-500.0,0.00039615,30]
[359822949,1746359463346,-500.0,0.00039615,30]
[359822951,1746359463355,-151.0,0.00039615,30]
[359822953,1746359463365,-500.0,0.00039615,30]
[359822955,1746359463379,-201.45028655,0.00039615,30]
[359822957,1746359463388,-151.0,0.00039615,30]
[359822959,1746359463398,-575.73917924,0.00039615,30]
[359822960,1746359463408,-500.0,0.00039615,30]
[359822961,1746359463420,-151.0,0.00039615,30]
[359822962,1746359463430,-500.0,0.00039615,30]
[359822963,1746359463440,-500.0,0.00039615,30]
[359822964,1746359463449,-151.0,0.00039615,30]
[359822965,1746359463461,-208.33725657,0.00039627,2]
[359822966,1746359463471,-500.0,0.00039628,5]
[359822967,1746359463481,-500.0,0.00039643,30]
[359822968,1746359463490,-151.0,0.00039643,30]
[359822969,1746359463500,-500.0,0.00039643,30]
[359822970,1746359463510,-500.0,0.00039643,30]
[359822971,1746359463519,-151.0,0.00039643,30]
[359822972,1746359463529,-500.0,0.00039643,30]
[359822973,1746359463538,-151.0,0.00039643,30]
[359822974,1746359463549,-500.0,0.00039643,30]
[359822975,1746359463558,-151.0,0.00039643,30]
[359822977,1746359463568,-500.0,0.00039643,30]
[359822979,1746359463579,-500.0,0.00039643,30]
[359822981,1746359463588,-151.0,0.00039643,30]
[359822983,1746359463598,-500.0,0.0003967,30]
[359822986,1746359463617,-151.0,0.0003967,30]
[359822988,1746359463629,-500.0,0.0003967,30]
[359822990,1746359463639,-500.0,0.0003967,30]
[359822992,1746359463648,-151.0,0.0003967,30]
[359822994,1746359463659,-151.0,0.0003967,30]
[359822996,1746359463669,-203.37782142,0.0003967,30]
[359822998,1746359463679,-500.0,0.0003967,30]
[359823000,1746359463688,-500.0,0.0003967,30]
[359823002,1746359463697,-500.0,0.00039673,5]
[359823004,1746359463707,-500.0,0.00039673,5]
[359823006,1746359463718,-500.0,0.00039673,5]
[359823008,1746359463726,-500.0,0.00039673,5]
[359823010,1746359463736,-151.0,0.00039681,2]
[359823012,1746359463746,-151.0,0.00039681,2]
[359823014,1746359463756,-293.500385,0.00039681,14]
[359823016,1746359463766,-151.0,0.00039698,30]
[359823018,1746359463776,-151.0,0.00039698,30]
[359823020,1746359463786,-198.0,0.00039698,30]
[359823022,1746359463796,-500.0,0.00039698,30]
[359823024,1746359463806,-500.0,0.00039698,30]
[359823026,1746359463815,-200.0,0.00039699,120]
[359823028,1746359463825,-27646.28,0.000397,30]
[359823030,1746359463835,-1337.83,0.000397,30]
[359823032,1746359463846,-44896.62906474,0.00039717,2]
[359823034,1746359463856,-324955.9164915,0.00039718,20]
[359823036,1746359463871,-400.0,0.00039718,20]
[359823038,1746359463884,-719.01995861,0.00039718,20]
[359823040,1746359463895,-373.89531288,0.00039718,20]
[359823043,1746359463907,-5720.00002,0.00039718,20]
[359823047,1746359463936,-400.0,0.00038904,15]
[359823061,1746359464062,-377.36500557,0.00038904,15]
[359823063,1746359464072,-400.0,0.00038904,15]
[359823065,1746359464081,-400.0,0.00038904,15]
[359823067,1746359464091,-14305.50868578,0.00039718,20]
[359823069,1746359464104,-32239.60616878,0.00039718,20]
[359823071,1746359464115,-21630.56707125,0.00039718,20]
[359823073,1746359464126,-5296.55496206,0.00039718,20]
[359823079,1746359464170,-2336.0566109,0.00039718,20]
[359823101,1746359464375,172.685,0.0003,2]
[359824101,1746359530983,550.1456632,0.00024953,10]
[359824102,1746359590042,-500.0,0.00024953,10]
[359824117,1746360116222,-273.8543368,0.00024112,10]
[359824118,1746360116242,-200.82209684,0.00024356,2]
[359824119,1746360116262,-25.32356636,0.00024356,7]
[359825128,1746360314747,-265.92094289,0.00024112,10]
[359825129,1746360314768,-234.07905711,0.00024356,7]
[359825131,1746360358129,-144.20796383,0.00024356,7]
[359825132,1746360358151,-105.23723104,0.00024456,2]
[359825136,1746360427133,-744.47200149,0.00024356,2]
[359825137,1746360427154,-872.34905945,0.00024356,7]
[359825138,1746360427176,-259.90892037,0.00024456,2]
[359825139,1746360427197,-523.197214,0.00027397,2]
[359825140,1746360427218,-240.97524545,0.00027542,2]
[359825141,1746360430086,-9.02475455,0.00027542,2]
[359825142,1746360430107,-258.895271,0.00027635,2]
[359825143,1746360430127,-666.54978753,0.00030422,2]
[359825145,1746360573098,-313.73916419,0.00027,3]
[359825167,1746360632455,-3032.2240193,0.00029088,2]
[359825168,1746360632465,-250.0,0.00030322,2]
[359825169,1746360632475,-333.45021247,0.00030422,2]
[359825170,1746360632484,-152.0,0.00030551,2]
[359825171,1746360632493,-1600.0,0.00030598,2]
[359825172,1746360632505,-400.0,0.00030598,2]
[359825173,1746360632514,-94.83839546,0.00030599,2]
[359825174,1746360632526,-305.16160454,0.00030599,2]
[359825175,1746360632535,-400.0,0.00030599,2]
[359825176,1746360632544,-400.0,0.00030599,2]
[359825177,1746360632554,-400.0,0.00030599,2]
[359825178,1746360632563,-21932.89839546,0.000306,2]
[359825179,1746360632575,-3617.44109565,0.000306,2]
[359825180,1746360638464,-23440.41050889,0.000306,2]
[359825181,1746360638474,-7415.51331348,0.00030615,2]
[359825182,1746360638484,-472.98015497,0.0003062,2]
[359825183,1746360638494,-28415.93765911,0.00030621,2]
[359825184,1746360638504,-24900.0,0.00030625,2]
[359825185,1746360638513,-183.827281,0.00030696,2]
[359825186,1746360638523,-501.35569334,0.000307,5]
[359825187,1746360638533,-500.0,0.000307,5]
[359825188,1746360638542,-205.89997697,0.000309,23]
[359825189,1746360638551,-500.0,0.00031781,2]
[359825190,1746360638561,-505.5,0.00031938,30]
[359825191,1746360638570,-205.89997697,0.00032186,26]
[359825192,1746360638580,-200.0,0.00032958,3]
[359825193,1746360638589,-560.0,0.00032959,2]
[359825195,1746360638599,-174.0,0.00032959,3]
[359825197,1746360638609,-200.0,0.00032959,3]
[359825198,1746360638621,-560.0,0.00032959,3]
[359825199,1746360638630,-821.18,0.00033,7]
[359825200,1746360638640,-1316.0,0.00033096,3]
[359825201,1746360638651,-523.197214,0.00033165,2]
[359825202,1746360638660,-160.0,0.00033409,2]
[359825203,1746360638670,-160.0,0.00033428,2]
[359825204,1746360638680,-160.0,0.00033428,2]
[359825205,1746360638689,-160.0,0.00033428,2]
[359825206,1746360638699,-205.89997697,0.00033471,28]
[359825207,1746360638708,-205.89997697,0.00034757,31]
[359825208,1746360638718,-433.27582303,0.00034994,2]
[359825209,1746360638727,-783.0,0.000355,2]
[359825210,1746360638736,-500.0,0.00035882,60]
[359825211,1746360638746,-403.0,0.00035924,2]
[359825212,1746360638755,-205.89997697,0.00036043,34]
[359825213,1746360638764,-1000.0,0.00036179,5]
[359825214,1746360638773,-156.3205037,0.000362,120]
[359825215,1746360638783,-150.0,0.00036777,2]
[359825216,1746360638791,-173.057,0.00036777,2]
[359825217,1746360638801,-545.0,0.00036777,2]
[359825218,1746360638810,-707.0,0.00036777,2]
[359825219,1746360638820,-2244.0,0.00036777,2]
[359825220,1746360638829,-500.0,0.00036978,60]
[359825221,1746360638838,-228.56,0.000373,2]
[359825222,1746360638847,-205.89997697,0.00037329,36]
[359825223,1746360638857,-3835.7743681,0.00037721,3]
[359825224,1746360638869,-3579.73894538,0.00037721,3]
[359825225,1746360638878,-160.0,0.00037721,3]
[359825226,1746360638891,-160.0,0.00037721,3]
[359825227,1746360638901,-1203.0250965,0.00037731,4]
[359825228,1746360638911,-804.49725037,0.00037741,2]
[359825229,1746360638921,-316.52118032,0.000379,3]
[359825230,1746360638931,-821.18,0.000379,7]
[359825231,1746360638941,-160.0,0.00038064,3]
[359825232,1746360638950,-500.0,0.00038074,60]
[359825233,1746360638961,-744.0,0.00038238,2]
[359825234,1746360638970,-205.89997697,0.00038614,39]
[359825235,1746360638981,-500.0,0.00038773,5]
[359825236,1746360638991,-537.77771803,0.00038773,5]
[359825237,1746360639000,-500.0,0.00038773,5]
[359825238,1746360639010,-500.0,0.00038773,5]
[359825239,1746360639020,-500.0,0.00038773,5]
[359825240,1746360639030,-495.30513333,0.00038773,5]
[359825241,1746360639039,-500.0,0.00038773,5]
[359825242,1746360639048,-500.0,0.00038773,5]
[359825243,1746360639058,-500.0,0.00038773,5]
[359825244,1746360639067,-500.0,0.00038773,2]
[359825245,1746360639076,-22246.5399404,0.0003879,3]
[359825246,1746360639086,-100000.0,0.000388,10]
[359825247,1746360639095,-179.56415241,0.00038804,2]
[359825248,1746360639105,-7415.51331348,0.00038874,3]
[359825249,1746360639115,-14831.026627,0.00038884,3]
[359825250,1746360639124,-88986.1597618,0.00038894,3]
[359825251,1746360639134,-300.0,0.000389,30]
[359825252,1746360639143,-400.0,0.00038904,15]
[359825253,1746360639153,-400.0,0.00038904,15]
[359825254,1746360639162,-400.0,0.00038904,15]
[359825255,1746360639172,-400.0,0.00038904,15]
[359825256,1746360639181,-540.133429,0.00038904,15]
[359825257,1746360639190,-400.0,0.00038904,15]
[359825258,1746360639200,-400.0,0.00038904,15]
[359825259,1746360639209,-400.0,0.00038904,15]
[359825260,1746360639219,-400.0,0.00038904,15]
[359825261,1746360639228,-503.25479738,0.00038904,15]
[359825262,1746360639238,-500.0,0.00038904,15]
[359825263,1746360639247,-400.0,0.00038904,15]
[359825264,1746360639257,-400.0,0.00038904,15]
[359825265,1746360639268,-400.0,0.00038904,15]
[359825266,1746360639277,-400.0,0.00038904,15]
[359825267,1746360639287,-400.0,0.00038904,15]
[359825268,1746360639296,-548.8458177,0.00038904,15]
[359825269,1746360639305,-400.0,0.00038904,15]
[359825270,1746360639314,-400.0,0.00038904,15]
[359825271,1746360639324,-400.0,0.00038904,15]
[359825272,1746360639333,-400.0,0.00038904,15]
[359825273,1746360639343,-400.0,0.00038904,15]
[359825274,1746360639352,-400.0,0.00038904,15]
[359825275,1746360639362,-400.0,0.00038904,15]
[359825276,1746360639371,-400.0,0.00038904,15]
[359825277,1746360639381,-400.0,0.00038904,15]
[359825278,1746360639390,-400.0,0.00038904,15]
[359825279,1746360639400,-449.94,0.00038904,15]
[359825280,1746360639409,-400.0,0.00038904,15]
[359825281,1746360639418,-400.0,0.00038904,15]
[359825282,1746360639428,-400.0,0.00038904,15]
[359825283,1746360639438,-400.0,0.00038904,15]
[359825284,1746360639447,-198.5017375,0.00038904,15]
[359825285,1746360639456,-400.0,0.00038904,15]
[359825286,1746360639466,-400.0,0.00038904,15]
[359825287,1746360639475,-400.0,0.00038904,15]
[359825288,1746360639485,-400.0,0.00038904,15]
[359825289,1746360639494,-501.16,0.00038904,15]
[359825290,1746360639503,-400.0,0.00038904,15]
[359825291,1746360639513,-400.0,0.00038904,15]
[359825292,1746360639522,-206.40619473,0.00038904,15]
[359825293,1746360639532,-1073.69400872,0.00038904,15]
[359825294,1746360639541,-400.0,0.00038904,15]
[359825295,1746360639551,-400.0,0.00038904,15]
[359825296,1746360639560,-364.64575229,0.00038904,15]
[359825297,1746360639570,-400.0,0.00038904,15]
[359825298,1746360639580,-400.0,0.00038904,15]
[359825299,1746360639589,-400.0,0.00038904,15]
[359825300,1746360639599,-400.0,0.00038904,15]
[359825301,1746360639609,-400.0,0.00038904,15]
[359825302,1746360639618,-400.0,0.00038904,15]
[359825303,1746360639628,-400.0,0.00038904,15]
[359825304,1746360639637,-400.0,0.00038904,15]
[359825305,1746360639647,-400.0,0.00038904,15]
[359825306,1746360639656,-400.0,0.00038904,15]
[359825307,1746360639665,-400.0,0.00038904,15]
[359825308,1746360639674,-400.0,0.00038904,15]
[359825309,1746360639684,-400.0,0.00038904,15]
[359825310,1746360639694,-400.0,0.00038904,15]
[359825311,1746360639703,-400.0,0.00038904,15]
[359825312,1746360639713,-400.0,0.00038904,15]
[359825313,1746360639722,-400.0,0.00038904,15]
[359825314,1746360639731,-400.0,0.00038904,15]
[359825315,1746360639741,-400.0,0.00038904,15]
[359825316,1746360639750,-400.0,0.00038904,15]
[359825317,1746360639760,-400.0,0.00038904,15]
[359825318,1746360639769,-400.0,0.00038904,15]
[359825319,1746360639779,-400.0,0.00038904,15]
[359825320,1746360639788,-400.0,0.00038904,15]
[359825321,1746360639797,-400.0,0.00038904,15]
[359825322,1746360639806,-400.0,0.00038904,15]
[359825323,1746360639816,-400.0,0.00038904,15]
[359825324,1746360639825,-400.0,0.00038904,15]
[359825325,1746360639835,-400.0,0.00038904,15]
[359825326,1746360639844,-400.0,0.00038904,15]
[359825327,1746360639854,-400.0,0.00038904,15]
[359825328,1746360639864,-400.0,0.00038904,15]
[359825329,1746360639873,-400.0,0.00038904,15]
[359825330,1746360639988,-400.0,0.00038904,15]
[359825331,1746360639998,-400.0,0.00038904,15]
[359825332,1746360640008,-400.0,0.00038904,15]
[359825333,1746360640018,-400.0,0.00038904,15]
[359825334,1746360640028,-400.0,0.00038904,15]
[359825335,1746360640038,-400.0,0.00038904,15]
[359825337,1746360640048,-400.0,0.00038904,15]
[359825338,1746360640058,-400.0,0.00038904,15]
[359825339,1746360640068,-400.0,0.00038904,15]
[359825340,1746360640078,-400.0,0.00038904,15]
[359825341,1746360640088,-400.0,0.00038904,15]
[359825342,1746360640097,-400.0,0.00038904,15]
[359825343,1746360640107,-507.66796083,0.00038904,15]
[359825344,1746360640117,-400.0,0.00038904,15]
[359825345,1746360640127,-400.0,0.00038904,15]
[359825346,1746360640136,-400.0,0.00038904,15]
[359825347,1746360640146,-400.0,0.00038904,15]
[359825348,1746360640155,-300.0,0.00038904,15]
[359825349,1746360640164,-379.77267593,0.00038904,15]
[359825350,1746360640173,-400.0,0.00038904,15]
[359825351,1746360640182,-400.0,0.00038904,15]
[359825352,1746360640192,-400.0,0.00038904,15]
[359825353,1746360640201,-522.22,0.00038904,15]
[359825354,1746360640210,-400.0,0.00038904,15]
[359825355,1746360640220,-400.0,0.00038904,15]
[359825356,1746360640229,-400.0,0.00038904,15]
[359825357,1746360640238,-400.0,0.00038904,15]
[359825358,1746360640247,-400.0,0.00038904,15]
[359825359,1746360640257,-400.0,0.00038904,15]
[359825360,1746360640266,-400.0,0.00038904,15]
[359825361,1746360640275,-233.44550452,0.00038904,15]
[359825362,1746360640286,-400.0,0.00038904,15]
[359825363,1746360640295,-400.0,0.00038904,15]
[359825364,1746360640304,-532.00184332,0.00038904,15]
[359825365,1746360640314,-400.0,0.00038904,15]
[359825366,1746360640323,-400.0,0.00038904,15]
[359825367,1746360640333,-400.0,0.00038904,15]
[359825368,1746360640342,-400.0,0.00038904,15]
[359825369,1746360640352,-400.0,0.00038904,15]
[359825370,1746360640361,-400.0,0.00038904,15]
[359825371,1746360640371,-400.0,0.00038904,15]
[359825372,1746360640380,-400.0,0.00038904,15]
[359825373,1746360640390,-400.0,0.00038904,15]
[359825374,1746360640399,-400.0,0.00038904,15]
[359825375,1746360640409,-400.0,0.00038904,15]
[359825376,1746360640418,-400.0,0.00038904,15]
[359825377,1746360640428,-400.0,0.00038904,15]
[359825378,1746360640438,-400.0,0.00038904,15]
[359825379,1746360640448,-400.0,0.00038904,15]
[359825380,1746360640457,-400.0,0.00038904,15]
[359825381,1746360640466,-400.0,0.00038904,15]
[359825382,1746360640475,-400.0,0.00038904,15]
[359825383,1746360640484,-400.0,0.00038904,15]
[359825384,1746360640493,-400.0,0.00038904,15]
[359825385,1746360640502,-425.03,0.00038904,15]
[359825386,1746360640511,-400.0,0.00038904,15]
[359825387,1746360640521,-400.0,0.00038904,15]
[359825388,1746360640530,-400.0,0.00038904,15]
[359825389,1746360640539,-400.0,0.00038904,15]
[359825390,1746360640548,-400.0,0.00038904,15]
[359825391,1746360640558,-400.0,0.00038904,15]
[359825392,1746360640567,-400.0,0.00038904,15]
[359825393,1746360640576,-400.0,0.00038904,15]
[359825394,1746360640586,-400.0,0.00038904,15]
[359825395,1746360640595,-400.0,0.00038904,15]
[359825396,1746360640604,-400.0,0.00038904,15]
[359825397,1746360640613,-400.0,0.00038904,15]
[359825398,1746360640623,-429.43,0.00038904,15]
[359825399,1746360640632,-439.01574218,0.00038904,15]
[359825400,1746360640641,-301.19973974,0.00038904,15]
[359825401,1746360640650,-400.0,0.00038904,15]
[359825402,1746360640660,-500.66275046,0.00038904,15]
[359825403,1746360640670,-400.0,0.00038904,15]
[359825404,1746360640679,-400.0,0.00038904,15]
[359825405,1746360640688,-500.0,0.00038904,15]
[359825406,1746360640698,-400.0,0.00038904,15]
[359825407,1746360640707,-400.0,0.00038904,15]
[359825408,1746360640716,-400.0,0.00038904,15]
[359825409,1746360640726,-400.0,0.00038904,15]
[359825410,1746360640735,-400.0,0.00038904,15]
[359825411,1746360640745,-400.0,0.00038904,15]
[359825412,1746360640754,-400.0,0.00038904,15]
[359825413,1746360640764,-400.0,0.00038904,15]
[359825414,1746360640773,-203.37098351,0.00038904,15]
[359825415,1746360640782,-337.44,0.00038904,15]
[359825416,1746360640792,-400.0,0.00038904,15]
[359825417,1746360640802,-200.0,0.00038904,15]
[359825418,1746360640812,-400.0,0.00038904,15]
[359825419,1746360640822,-201.82459651,0.00038904,15]
[359825420,1746360640832,-442.12,0.00038904,15]
[359825421,1746360640841,-442.12,0.00038904,15]
[359825422,1746360640851,-442.12,0.00038904,15]
[359825423,1746360640860,-442.12,0.00038904,15]
[359825424,1746360640870,-400.0,0.00038904,15]
[359825425,1746360640880,-442.12,0.00038904,15]
[359825426,1746360640893,-400.0,0.00038904,15]
[359825427,1746360640903,-442.12,0.00038904,15]
[359825428,1746360640912,-400.0,0.00038904,15]
[359825429,1746360640922,-400.0,0.00038904,15]
[359825430,1746360640933,-400.0,0.00038904,15]
[359825431,1746360640943,-442.12,0.00038904,15]
[359825432,1746360640952,-442.12,0.00038904,15]
[359825433,1746360640963,-442.12,0.00038904,15]
[359825434,1746360640972,-442.12,0.00038904,15]
[359825436,1746360640981,-400.0,0.00038904,15]
[359825438,1746360640990,-442.12,0.00038904,15]
[359825439,1746360641001,-400.0,0.00038904,15]
[359825441,1746360641010,-442.12,0.00038904,15]
[359825442,1746360641019,-400.0,0.00038904,15]
[359825444,1746360641029,-400.0,0.00038904,15]
[359825446,1746360641039,-442.12,0.00038904,15]
[359825448,1746360641048,-444.20134006,0.00038904,15]
[359825450,1746360641057,-400.0,0.00038904,15]
[359825451,1746360641066,-442.12,0.00038904,15]
[359825453,1746360641076,-400.0,0.00038904,15]
[359825455,1746360641085,-442.12,0.00038904,15]
[359825457,1746360641094,-524.2,0.00038904,15]
[359825459,1746360641103,-442.12,0.00038904,15]
[359825461,1746360641112,-442.12,0.00038904,15]
[359825463,1746360641121,-442.12,0.00038904,15]
[359825465,1746360641131,-442.12,0.00038904,15]
[359825467,1746360641140,-400.0,0.00038904,15]
[359825469,1746360641150,-400.0,0.00038904,15]
[359825471,1746360641159,-442.12,0.00038904,15]
[359825473,1746360641168,-442.12,0.00038904,15]
[359825475,1746360641178,-442.12,0.00038904,15]
[359825477,1746360641187,-442.12,0.00038904,15]
[359825479,1746360641196,-442.15,0.00038904,15]
[359825481,1746360641206,-400.0,0.00038904,15]
[359825483,1746360641217,-400.0,0.00038904,15]
[359825484,1746360641226,-509.47733899,0.00038904,15]
[359825485,1746360641235,-400.0,0.00038904,15]
[359825486,1746360641245,-400.0,0.00038904,15]
[359825487,1746360641255,-400.0,0.00038904,15]
[359825488,1746360641264,-400.0,0.00038904,15]
[359825489,1746360641273,-400.0,0.00038904,15]
[359825490,1746360641282,-265.46865232,0.00038904,15]
[359825491,1746360641291,-400.0,0.00038904,15]
[359825492,1746360641300,-400.0,0.00038904,15]
[359825493,1746360641310,-400.0,0.00038904,15]
[359825494,1746360641319,-400.0,0.00038904,15]
[359825495,1746360641328,-400.0,0.00038904,15]
[359825496,1746360641347,-400.0,0.00038904,15]
[359825497,1746360641357,-400.0,0.00038904,15]
[359825498,1746360641366,-400.0,0.00038904,15]
[359825499,1746360641376,-400.0,0.00038904,15]
[359825500,1746360641385,-400.0,0.00038904,15]
[359825501,1746360641395,-400.0,0.00038904,15]
[359825502,1746360641405,-400.0,0.00038904,15]